[Event "FIDE Grand Swiss 2023"]
[Site "Villa Marina, Douglas, Isle of Man"]
[Date "2023.10.27"]
[Round "3.34"]
[White "Lazavik, Denis"]
[Black "Wojtaszek, Radoslaw"]
[Result "0-1"]
[WhiteElo "2560"]
[BlackElo "2668"]
[EventDate "2023.10.25"]
[ECO "E00"]
[PlyCount "68"]
[BlackFideId "1118358"]
[TimeControl "40/100 + 20/50 + 15 + 30s/move"]
[WhiteFideId "13515110"]

1.d4 {[%clk 01:40:47] [%emt 00:00:11]} 1...Nf6 {[%clk 01:40:54] [%emt 00:00:05]} 
2.c4 {[%clk 01:40:59] [%emt 00:00:20]} 2...e6 {[%clk 01:41:21] [%emt 00:00:04]} 
3.g3 {[%clk 01:41:03] [%emt 00:00:25]} 3...d5 {[%clk 01:41:34] [%emt 00:00:17]} 
4.Nf3 {[%clk 01:40:58] [%emt 00:00:35]} 4...Bb4+ {[%clk 01:41:57] [%emt
00:00:07]} 5.Bd2 {[%clk 01:41:13] [%emt 00:00:15]} 5...a5 {[%clk 01:42:20] [%emt
00:00:08]} 6.Bg2 {[%clk 01:40:56] [%emt 00:00:45]} 6...O-O {[%clk 01:42:39]
[%emt 00:00:12]} 7.Qc1 {[%clk 01:40:48] [%emt 00:00:38]} 7...Be7 {[%clk
01:41:11] [%emt 00:01:58]} 8.O-O {[%clk 01:40:28] [%emt 00:00:49]} 8...Nbd7 
{[%clk 01:41:36] [%emt 00:00:06]} 9.Bf4 {[%clk 01:39:41] [%emt 00:01:17]} 
9...c6 {[%clk 01:41:49] [%emt 00:00:17]} 10.Rd1 {[%clk 01:39:40] [%emt
00:00:30]} 10...a4 {[%clk 01:39:36] [%emt 00:02:44]} 11.Qc2 {[%clk 01:35:57]
[%emt 00:04:13]} 11...h6 {[%clk 01:38:37] [%emt 00:01:30]} 12.Ne5 {[%clk
01:34:25] [%emt 00:02:01]} 12...Qb6 {[%clk 01:25:16] [%emt 00:13:52]} 13.Nxd7 
{[%clk 01:27:39] [%emt 00:07:15]} 13...Bxd7 {[%clk 01:19:26] [%emt 00:06:20]} 
14.c5 {[%clk 01:22:14] [%emt 00:05:55]} 14...Qa7 {[%clk 00:52:42] [%emt
00:27:15]} 15.Nc3 {[%clk 01:21:04] [%emt 00:01:38]} 15...Rfc8 {[%clk 00:51:07]
[%emt 00:02:06]} 16.Rab1 {[%clk 01:09:12] [%emt 00:12:22]} 16...b6 {[%clk
00:49:27] [%emt 00:02:11]} 17.cxb6 {[%clk 01:08:58] [%emt 00:00:44]} 17...Qxb6 
{[%clk 00:49:53] [%emt 00:00:04]} 18.Nxa4 {[%clk 01:08:57] [%emt 00:00:30]} 
18...Qa7 {[%clk 00:47:08] [%emt 00:03:16]} 19.b3 {[%clk 01:06:54] [%emt
00:02:32]} 19...c5 {[%clk 00:46:09] [%emt 00:01:29]} 20.Nxc5 {[%clk 01:07:11]
[%emt 00:00:13]} 20...Bxc5 {[%clk 00:41:44] [%emt 00:04:56]} 21.dxc5 {[%clk
01:07:34] [%emt 00:00:06]} 21...Rxc5 {[%clk 00:42:09] [%emt 00:00:05]} 22.Qd2 
{[%clk 00:59:33] [%emt 00:08:30]} 22...Qxa2 {[%clk 00:41:08] [%emt 00:01:33]} 
23.Rb2 {[%clk 00:57:50] [%emt 00:02:13]} 23...Qa6 {[%clk 00:41:22] [%emt
00:00:15]} 24.Bxh6 {[%clk 00:57:55] [%emt 00:00:24]} 24...gxh6 {[%clk 00:37:58]
[%emt 00:03:55]} 25.Qd4 {[%clk 00:58:20] [%emt 00:00:06]} 25...Qa1 {[%clk
00:24:58] [%emt 00:13:30]} 26.Qd2 {[%clk 00:33:45] [%emt 00:25:04]} 26...Qa3 
{[%clk 00:21:23] [%emt 00:04:05]} 27.Rbb1 {[%clk 00:32:22] [%emt 00:01:53]} 
27...Kg7 {[%clk 00:21:03] [%emt 00:00:50]} 28.g4 {[%clk 00:32:30] [%emt
00:00:22]} 28...Rac8 {[%clk 00:16:32] [%emt 00:05:02]} 29.g5 {[%clk 00:32:04]
[%emt 00:00:55]} 29...Ng8 {[%clk 00:16:56] [%emt 00:00:06]} 30.Qd4+ {[%clk
00:26:52] [%emt 00:05:41]} 30...Kf8 {[%clk 00:16:33] [%emt 00:00:54]} 31.gxh6 
{[%clk 00:25:21] [%emt 00:02:02]} 31...Nxh6 {[%clk 00:16:38] [%emt 00:00:25]} 
32.Ra1 {[%clk 00:25:23] [%emt 00:00:28]} 32...Qxb3 {[%clk 00:16:19] [%emt
00:00:49]} 33.Qh8+ {[%clk 00:25:41] [%emt 00:00:10]} 33...Ng8 {[%clk 00:16:35]
[%emt 00:00:15]} 34.Rd3 {[%clk 00:25:44] [%emt 00:00:27]} 34...Rc3 {[%clk
00:15:01] [%emt 00:02:04]} 0-1

[Event "FIDE Grand Swiss 2023"]
[Site "Villa Marina, Douglas, Isle of Man"]
[Date "2023.10.27"]
[Round "3.35"]
[White "Niemann, Hans Moke"]
[Black "Vokhidov, Shamsiddin"]
[Result "1-0"]
[WhiteElo "2667"]
[BlackElo "2578"]
[EventDate "2023.10.25"]
[ECO "C50"]
[PlyCount "201"]
[BlackFideId "14204223"]
[TimeControl "40/100 + 20/50 + 15 + 30s/move"]
[WhiteFideId "2093596"]

1.e4 {[%clk 01:40:55] [%emt 00:00:03]} 1...e5 {[%clk 01:40:50] [%emt 00:00:12]} 
2.Nf3 {[%clk 01:41:16] [%emt 00:00:09]} 2...Nc6 {[%clk 01:41:16] [%emt
00:00:05]} 3.Bc4 {[%clk 01:41:33] [%emt 00:00:09]} 3...Bc5 {[%clk 01:41:41]
[%emt 00:00:08]} 4.d3 {[%clk 01:41:48] [%emt 00:00:15]} 4...Nf6 {[%clk 01:42:05]
[%emt 00:00:06]} 5.O-O {[%clk 01:42:08] [%emt 00:00:08]} 5...d6 {[%clk 01:41:18]
[%emt 00:01:18]} 6.c3 {[%clk 01:41:42] [%emt 00:00:56]} 6...a5 {[%clk 01:40:34]
[%emt 00:01:15]} 7.Re1 {[%clk 01:41:48] [%emt 00:00:24]} 7...O-O {[%clk
01:40:00] [%emt 00:01:04]} 8.h3 {[%clk 01:42:09] [%emt 00:00:09]} 8...Be6 
{[%clk 01:38:54] [%emt 00:01:37]} 9.Bb5 {[%clk 01:42:03] [%emt 00:00:33]} 
9...Ba7 {[%clk 01:39:18] [%emt 00:00:08]} 10.Be3 {[%clk 01:39:16] [%emt
00:03:17]} 10...Bxe3 {[%clk 01:36:32] [%emt 00:03:16]} 11.Rxe3 {[%clk 01:39:33]
[%emt 00:00:07]} 11...Ne7 {[%clk 01:35:58] [%emt 00:01:10]} 12.d4 {[%clk
01:39:49] [%emt 00:00:14]} 12...c6 {[%clk 01:35:30] [%emt 00:00:59]} 13.Bf1 
{[%clk 01:39:30] [%emt 00:00:47]} 13...Re8 {[%clk 01:32:31] [%emt 00:03:29]} 
14.Nbd2 {[%clk 01:39:19] [%emt 00:00:42]} 14...Ng6 {[%clk 01:31:38] [%emt
00:01:24]} 15.a4 {[%clk 01:38:41] [%emt 00:01:07]} 15...Qc7 {[%clk 01:24:11]
[%emt 00:07:57]} 16.Qc2 {[%clk 01:38:26] [%emt 00:00:44]} 16...d5 {[%clk
01:15:53] [%emt 00:08:49]} 17.Nxe5 {[%clk 01:35:27] [%emt 00:03:29]} 17...Nxe5 
{[%clk 01:15:18] [%emt 00:01:06]} 18.dxe5 {[%clk 01:35:48] [%emt 00:00:08]} 
18...Qxe5 {[%clk 01:15:39] [%emt 00:00:09]} 19.Nf3 {[%clk 01:35:53] [%emt
00:00:24]} 19...Qh5 {[%clk 01:10:11] [%emt 00:05:59]} 20.e5 {[%clk 01:35:50]
[%emt 00:00:32]} 20...Ne4 {[%clk 01:07:51] [%emt 00:02:51]} 21.Rae1 {[%clk
01:32:14] [%emt 00:04:05]} 21...Rad8 {[%clk 00:58:46] [%emt 00:09:36]} 22.b4 
{[%clk 01:21:53] [%emt 00:10:52]} 22...axb4 {[%clk 00:49:14] [%emt 00:10:02]} 
23.cxb4 {[%clk 01:22:18] [%emt 00:00:05]} 23...Bc8 {[%clk 00:43:27] [%emt
00:06:17]} 24.Bd3 {[%clk 01:11:52] [%emt 00:10:54]} 24...h6 {[%clk 00:35:52]
[%emt 00:08:07]} 25.Bxe4 {[%clk 01:10:24] [%emt 00:01:58]} 25...dxe4 {[%clk
00:36:19] [%emt 00:00:03]} 26.Qxe4 {[%clk 01:10:41] [%emt 00:00:10]} 26...Rd5 
{[%clk 00:31:59] [%emt 00:04:52]} 27.b5 {[%clk 00:45:03] [%emt 00:26:08]} 
27...Red8 {[%clk 00:28:42] [%emt 00:03:48]} 28.bxc6 {[%clk 00:39:07] [%emt
00:06:26]} 28...bxc6 {[%clk 00:29:09] [%emt 00:00:03]} 29.Kh2 {[%clk 00:31:57]
[%emt 00:07:40]} 29...Bf5 {[%clk 00:24:34] [%emt 00:05:04]} 30.Qf4 {[%clk
00:26:06] [%emt 00:06:21]} 30...Be6 {[%clk 00:20:50] [%emt 00:04:15]} 31.Rc1 
{[%clk 00:24:26] [%emt 00:02:08]} 31...Bd7 {[%clk 00:19:30] [%emt 00:01:51]} 
32.Qe4 {[%clk 00:22:00] [%emt 00:02:55]} 32...Bf5 {[%clk 00:18:18] [%emt
00:01:43]} 33.Qb4 {[%clk 00:18:25] [%emt 00:04:04]} 33...Qg6 {[%clk 00:15:42]
[%emt 00:03:07]} 34.Rec3 {[%clk 00:15:39] [%emt 00:03:16]} 34...Be4 {[%clk
00:08:53] [%emt 00:07:19]} 35.Nh4 {[%clk 00:15:29] [%emt 00:00:40]} 35...Qh5 
{[%clk 00:08:15] [%emt 00:01:08]} 36.Qxe4 {[%clk 00:15:48] [%emt 00:00:12]} 
36...Rd4 {[%clk 00:08:42] [%emt 00:00:03]} 37.Qxc6 {[%clk 00:04:20] [%emt
00:11:57]} 37...Qxh4 {[%clk 00:08:33] [%emt 00:00:39]} 38.Rg3 {[%clk 00:02:33]
[%emt 00:02:17]} 38...Rxa4 {[%clk 00:06:32] [%emt 00:02:32]} 39.e6 {[%clk
00:02:59] [%emt 00:00:03]} 39...Ra7 {[%clk 00:03:42] [%emt 00:03:19]} 40.Rc4 
{[%clk 00:00:45] [%emt 00:02:44]} 40...Qe7 {[%clk 00:00:34] [%emt 00:03:39]} 
41.exf7+ {[%clk 00:00:33] [%emt 00:00:42]} 41...Qxf7 {[%clk 00:50:21] [%emt
00:00:43]} 42.Rcg4 {[%clk 00:45:45] [%emt 00:05:18]} 42...Kh8 {[%clk 00:43:01]
[%emt 00:07:50]} 43.Rxg7 {[%clk 00:36:16] [%emt 00:09:59]} 43...Qxg7 {[%clk
00:43:19] [%emt 00:00:12]} 44.Rxg7 {[%clk 00:36:09] [%emt 00:00:37]} 44...Kxg7 
{[%clk 00:43:46] [%emt 00:00:03]} 45.f4 {[%clk 00:36:26] [%emt 00:00:12]} 
45...Rad7 {[%clk 00:43:24] [%emt 00:00:53]} 46.Qe6 {[%clk 00:31:26] [%emt
00:05:28]} 46...Rd6 {[%clk 00:35:17] [%emt 00:08:39]} 47.Qe7+ {[%clk 00:31:26]
[%emt 00:00:29]} 47...Kg8 {[%clk 00:35:44] [%emt 00:00:04]} 48.g4 {[%clk
00:20:48] [%emt 00:11:07]} 48...R8d7 {[%clk 00:30:47] [%emt 00:05:28]} 49.Qe8+ 
{[%clk 00:21:06] [%emt 00:00:12]} 49...Kg7 {[%clk 00:31:04] [%emt 00:00:13]} 
50.Kg3 {[%clk 00:21:00] [%emt 00:00:35]} 50...Rd5 {[%clk 00:25:24] [%emt
00:06:11]} 51.Qe6 {[%clk 00:14:38] [%emt 00:06:52]} 51...R5d6 {[%clk 00:23:23]
[%emt 00:02:31]} 52.Qe5+ {[%clk 00:15:00] [%emt 00:00:08]} 52...Kf7 {[%clk
00:23:38] [%emt 00:00:16]} 53.Qh8 {[%clk 00:14:43] [%emt 00:00:45]} 53...Re7 
{[%clk 00:22:49] [%emt 00:01:20]} 54.Kh4 {[%clk 00:10:19] [%emt 00:04:54]} 
54...Re3 {[%clk 00:18:54] [%emt 00:04:25]} 55.Qh7+ {[%clk 00:10:33] [%emt
00:00:16]} 55...Kf8 {[%clk 00:19:18] [%emt 00:00:06]} 56.Qc7 {[%clk 00:05:57]
[%emt 00:05:05]} 56...Red3 {[%clk 00:14:45] [%emt 00:05:03]} 57.Qb7 {[%clk
00:04:24] [%emt 00:02:02]} 57...Rd7 {[%clk 00:13:37] [%emt 00:01:39]} 58.Qe4 
{[%clk 00:04:19] [%emt 00:00:35]} 58...R7d6 {[%clk 00:13:31] [%emt 00:00:36]} 
59.Qe5 {[%clk 00:03:18] [%emt 00:01:30]} 59...Kf7 {[%clk 00:13:21] [%emt
00:00:41]} 60.Qh5+ {[%clk 00:03:25] [%emt 00:00:22]} 60...Kf8 {[%clk 00:13:26]
[%emt 00:00:26]} 61.Qb5 {[%clk 00:02:46] [%emt 00:01:07]} 61...Kf7 {[%clk
00:12:33] [%emt 00:01:24]} 62.f5 {[%clk 00:00:47] [%emt 00:02:29]} 62...Kf8 
{[%clk 00:10:11] [%emt 00:02:52]} 63.Qb4 {[%clk 00:13:43] [%emt 00:02:34]} 
63...Kf7 {[%clk 00:23:29] [%emt 00:02:13]} 64.Qc4+ {[%clk 00:14:08] [%emt
00:00:05]} 64...Kg7 {[%clk 00:23:27] [%emt 00:00:32]} 65.Qe4 {[%clk 00:13:03]
[%emt 00:01:34]} 65...Kf7 {[%clk 00:23:29] [%emt 00:00:29]} 66.Qc4+ {[%clk
00:12:24] [%emt 00:01:09]} 66...Kg7 {[%clk 00:23:53] [%emt 00:00:07]} 67.Qb4 
{[%clk 00:12:30] [%emt 00:00:23]} 67...Kf7 {[%clk 00:23:55] [%emt 00:00:29]} 
68.Qe4 {[%clk 00:12:32] [%emt 00:00:26]} 68...h5 {[%clk 00:10:53] [%emt
00:13:34]} 69.Kxh5 {[%clk 00:11:04] [%emt 00:01:57]} 69...Rxh3+ {[%clk 00:11:19]
[%emt 00:00:04]} 70.Kg5 {[%clk 00:11:28] [%emt 00:00:05]} 70...Rhd3 {[%clk
00:08:58] [%emt 00:02:52]} 71.Qe5 {[%clk 00:11:50] [%emt 00:00:07]} 71...R3d5 
{[%clk 00:08:10] [%emt 00:01:19]} 72.Qe4 {[%clk 00:11:54] [%emt 00:00:23]} 
72...Rd3 {[%clk 00:07:59] [%emt 00:00:44]} 73.Qh1 {[%clk 00:12:04] [%emt
00:00:19]} 73...Kg7 {[%clk 00:06:39] [%emt 00:01:50]} 74.Qb7+ {[%clk 00:12:06]
[%emt 00:00:29]} 74...Rd7 {[%clk 00:07:04] [%emt 00:00:05]} 75.Qb8 {[%clk
00:11:49] [%emt 00:00:44]} 75...R3d6 {[%clk 00:07:03] [%emt 00:00:33]} 76.Qe8 
{[%clk 00:10:56] [%emt 00:01:23]} 76...Rf7 {[%clk 00:05:42] [%emt 00:01:53]} 
77.Qe5+ {[%clk 00:09:54] [%emt 00:01:31]} 77...Rdf6 {[%clk 00:06:11] [%emt
00:00:02]} 78.Kf4 {[%clk 00:08:12] [%emt 00:02:10]} 78...Kh7 {[%clk 00:06:01]
[%emt 00:00:41]} 79.Qd4 {[%clk 00:07:32] [%emt 00:01:09]} 79...Rf8 {[%clk
00:05:22] [%emt 00:01:10]} 80.Ke5 {[%clk 00:07:30] [%emt 00:00:29]} 80...Kg7 
{[%clk 00:05:09] [%emt 00:00:46]} 81.Qd7+ {[%clk 00:07:25] [%emt 00:00:34]} 
81...R8f7 {[%clk 00:05:01] [%emt 00:00:39]} 82.Qd2 {[%clk 00:07:40] [%emt
00:00:14]} 82...Re7+ {[%clk 00:05:23] [%emt 00:00:10]} 83.Kf4 {[%clk 00:08:04]
[%emt 00:00:04]} 83...Ref7 {[%clk 00:05:48] [%emt 00:00:06]} 84.Qc1 {[%clk
00:07:58] [%emt 00:00:34]} 84...Rf8 {[%clk 00:05:48] [%emt 00:00:32]} 85.Ke4 
{[%clk 00:08:04] [%emt 00:00:22]} 85...Re8+ {[%clk 00:04:07] [%emt 00:02:13]} 
86.Kf3 {[%clk 00:08:29] [%emt 00:00:04]} 86...Ref8 {[%clk 00:04:22] [%emt
00:00:16]} 87.Qg5+ {[%clk 00:08:54] [%emt 00:00:05]} 87...Kh7 {[%clk 00:04:30]
[%emt 00:00:23]} 88.Kf4 {[%clk 00:08:07] [%emt 00:01:12]} 88...R8f7 {[%clk
00:02:06] [%emt 00:02:58]} 89.Ke5 {[%clk 00:08:28] [%emt 00:00:09]} 89...Rb6 
{[%clk 00:01:51] [%emt 00:00:46]} 90.Qh4+ {[%clk 00:08:48] [%emt 00:00:09]} 
90...Kg7 {[%clk 00:02:04] [%emt 00:00:16]} 91.Qg5+ {[%clk 00:08:44] [%emt
00:00:35]} 91...Kh7 {[%clk 00:02:32] [%emt 00:00:02]} 92.Qd8 {[%clk 00:09:02]
[%emt 00:00:10]} 92...Rfb7 {[%clk 00:01:49] [%emt 00:01:15]} 93.Kf4 {[%clk
00:05:47] [%emt 00:03:44]} 93...Rh6 {[%clk 00:01:33] [%emt 00:00:47]} 94.Qd3 
{[%clk 00:04:05] [%emt 00:02:11]} 94...Rhb6 {[%clk 00:00:38] [%emt 00:01:25]} 
95.f6+ {[%clk 00:04:08] [%emt 00:00:27]} 95...Kg8 {[%clk 00:01:00] [%emt
00:00:09]} 96.Kf5 {[%clk 00:03:25] [%emt 00:01:11]} 96...Kf7 {[%clk 00:00:47]
[%emt 00:00:45]} 97.Qc4+ {[%clk 00:03:49] [%emt 00:00:06]} 97...Kf8 {[%clk
00:01:13] [%emt 00:00:05]} 98.g5 {[%clk 00:03:57] [%emt 00:00:20]} 98...Rb8 
{[%clk 00:01:07] [%emt 00:00:37]} 99.Kg6 {[%clk 00:04:11] [%emt 00:00:15]} 
99...R6b7 {[%clk 00:01:23] [%emt 00:00:16]} 100.Kh6 {[%clk 00:03:10] [%emt
00:01:29]} 100...Rf7 {[%clk 00:00:49] [%emt 00:01:05]} 101.Qd4 {[%clk 00:02:56]
[%emt 00:00:42]} 1-0

[Event "FIDE Grand Swiss 2023"]
[Site "Villa Marina, Douglas, Isle of Man"]
[Date "2023.10.27"]
[Round "3.36"]
[White "Kozak, Adam"]
[Black "Anton Guijarro, David"]
[Result "1/2-1/2"]
[WhiteElo "2566"]
[BlackElo "2653"]
[EventDate "2023.10.25"]
[ECO "A04"]
[PlyCount "78"]
[BlackFideId "2285525"]
[TimeControl "40/100 + 20/50 + 15 + 30s/move"]
[WhiteFideId "753246"]

1.Nf3 {[%clk 01:40:48] [%emt 00:00:11]} 1...e6 {[%clk 01:40:06] [%emt 00:00:55]} 
2.g3 {[%clk 01:39:34] [%emt 00:01:45]} 2...b5 {[%clk 01:39:36] [%emt 00:00:59]} 
3.e3 {[%clk 01:37:44] [%emt 00:02:20]} 3...a6 {[%clk 01:34:31] [%emt 00:05:35]} 
4.Bg2 {[%clk 01:37:51] [%emt 00:00:23]} 4...Bb7 {[%clk 01:34:36] [%emt
00:00:26]} 5.b3 {[%clk 01:37:24] [%emt 00:00:57]} 5...b4 {[%clk 01:27:14] [%emt
00:07:52]} 6.O-O {[%clk 01:32:10] [%emt 00:05:43]} 6...Nf6 {[%clk 01:26:55]
[%emt 00:00:49]} 7.Bb2 {[%clk 01:31:42] [%emt 00:00:58]} 7...Be7 {[%clk
01:25:21] [%emt 00:02:04]} 8.c4 {[%clk 01:21:17] [%emt 00:10:54]} 8...bxc3 
{[%clk 01:24:33] [%emt 00:01:19]} 9.Nxc3 {[%clk 01:19:55] [%emt 00:01:52]} 
9...c5 {[%clk 01:20:34] [%emt 00:04:29]} 10.Rc1 {[%clk 01:18:23] [%emt
00:02:02]} 10...O-O {[%clk 01:05:48] [%emt 00:15:16]} 11.Na4 {[%clk 01:13:08]
[%emt 00:05:45]} 11...d6 {[%clk 01:06:01] [%emt 00:00:17]} 12.d4 {[%clk
01:07:20] [%emt 00:06:18]} 12...cxd4 {[%clk 01:05:51] [%emt 00:00:41]} 13.Nxd4 
{[%clk 01:02:03] [%emt 00:05:47]} 13...Ra7 {[%clk 01:05:04] [%emt 00:01:16]} 
14.Bxb7 {[%clk 00:44:00] [%emt 00:18:33]} 14...Rxb7 {[%clk 01:05:29] [%emt
00:00:05]} 15.Qe2 {[%clk 00:44:26] [%emt 00:00:04]} 15...Qd7 {[%clk 00:59:53]
[%emt 00:06:06]} 16.e4 {[%clk 00:40:25] [%emt 00:04:31]} 16...Rc8 {[%clk
00:53:41] [%emt 00:06:42]} 17.e5 {[%clk 00:37:27] [%emt 00:03:28]} 17...Nd5 
{[%clk 00:45:46] [%emt 00:08:25]} 18.exd6 {[%clk 00:27:32] [%emt 00:10:25]} 
18...Bxd6 {[%clk 00:46:06] [%emt 00:00:10]} 19.Nc3 {[%clk 00:25:51] [%emt
00:02:11]} 19...Nxc3 {[%clk 00:44:48] [%emt 00:01:48]} 20.Rxc3 {[%clk 00:26:03]
[%emt 00:00:18]} 20...Rxc3 {[%clk 00:44:00] [%emt 00:01:18]} 21.Bxc3 {[%clk
00:26:27] [%emt 00:00:05]} 21...Bf8 {[%clk 00:37:36] [%emt 00:06:54]} 22.Rd1 
{[%clk 00:23:08] [%emt 00:03:49]} 22...Qc8 {[%clk 00:37:06] [%emt 00:01:01]} 
23.Bb2 {[%clk 00:20:22] [%emt 00:03:16]} 23...Rc7 {[%clk 00:36:14] [%emt
00:01:22]} 24.Rd2 {[%clk 00:17:00] [%emt 00:03:53]} 24...Nd7 {[%clk 00:31:44]
[%emt 00:04:59]} 25.Nc2 {[%clk 00:07:58] [%emt 00:09:32]} 25...Nc5 {[%clk
00:22:25] [%emt 00:09:49]} 26.Be5 {[%clk 00:06:47] [%emt 00:01:42]} 26...Rd7 
{[%clk 00:22:29] [%emt 00:00:25]} 27.Rxd7 {[%clk 00:05:11] [%emt 00:02:06]} 
27...Qxd7 {[%clk 00:21:17] [%emt 00:01:42]} 28.Bd4 {[%clk 00:05:35] [%emt
00:00:06]} 28...Qb7 {[%clk 00:19:06] [%emt 00:02:41]} 29.Bxc5 {[%clk 00:01:51]
[%emt 00:04:14]} 29...Bxc5 {[%clk 00:19:32] [%emt 00:00:04]} 30.b4 {[%clk
00:02:18] [%emt 00:00:04]} 30...Ba7 {[%clk 00:16:11] [%emt 00:03:50]} 31.a4 
{[%clk 00:00:59] [%emt 00:01:50]} 31...g6 {[%clk 00:15:10] [%emt 00:01:29]} 
32.b5 {[%clk 00:00:44] [%emt 00:00:46]} 32...axb5 {[%clk 00:14:32] [%emt
00:01:08]} 33.axb5 {[%clk 00:01:12] [%emt 00:00:01]} 33...Bc5 {[%clk 00:11:58]
[%emt 00:03:04]} 34.Qd3 {[%clk 00:00:35] [%emt 00:01:08]} 34...h5 {[%clk
00:10:08] [%emt 00:02:20]} 35.h4 {[%clk 00:00:44] [%emt 00:00:21]} 35...Qb8 
{[%clk 00:05:30] [%emt 00:05:09]} 36.Kg2 {[%clk 00:00:50] [%emt 00:00:23]} 
36...Qa8+ {[%clk 00:05:13] [%emt 00:00:47]} 37.Kg1 {[%clk 00:00:37] [%emt
00:00:43]} 37...Qb8 {[%clk 00:03:47] [%emt 00:01:56]} 38.Kg2 {[%clk 00:00:55]
[%emt 00:00:11]} 38...Qa8+ {[%clk 00:04:12] [%emt 00:00:06]} 39.Kg1 {[%clk
00:01:21] [%emt 00:00:04]} 39...Qb8 {[%clk 00:04:38] [%emt 00:00:04]} 1/2-1/2

[Event "FIDE Grand Swiss 2023"]
[Site "Villa Marina, Douglas, Isle of Man"]
[Date "2023.10.27"]
[Round "3.37"]
[White "Ivanchuk, Vasyl"]
[Black "Mareco, Sandro"]
[Result "1/2-1/2"]
[WhiteElo "2653"]
[BlackElo "2606"]
[EventDate "2023.10.25"]
[ECO "E51"]
[PlyCount "83"]
[BlackFideId "112275"]
[TimeControl "40/100 + 20/50 + 15 + 30s/move"]
[WhiteFideId "14100010"]

1.d4 {[%clk 01:40:58] [%emt 00:00:01]} 1...Nf6 {[%clk 01:40:55] [%emt 00:00:05]} 
2.c4 {[%clk 01:41:26] [%emt 00:00:02]} 2...e6 {[%clk 01:41:20] [%emt 00:00:05]} 
3.Nf3 {[%clk 01:41:54] [%emt 00:00:02]} 3...d5 {[%clk 01:41:40] [%emt 00:00:10]} 
4.Nc3 {[%clk 01:42:21] [%emt 00:00:03]} 4...Bb4 {[%clk 01:42:03] [%emt
00:00:07]} 5.e3 {[%clk 01:42:46] [%emt 00:00:05]} 5...O-O {[%clk 01:42:26] [%emt
00:00:07]} 6.a3 {[%clk 01:43:14] [%emt 00:00:02]} 6...Bxc3+ {[%clk 01:38:26]
[%emt 00:04:31]} 7.bxc3 {[%clk 01:43:36] [%emt 00:00:07]} 7...c5 {[%clk
01:38:52] [%emt 00:00:04]} 8.Bb2 {[%clk 01:44:01] [%emt 00:00:04]} 8...Nc6 
{[%clk 01:35:53] [%emt 00:03:30]} 9.Be2 {[%clk 01:43:24] [%emt 00:01:08]} 
9...dxc4 {[%clk 01:35:51] [%emt 00:00:32]} 10.Bxc4 {[%clk 01:43:52] [%emt
00:00:02]} 10...b6 {[%clk 01:31:41] [%emt 00:04:39]} 11.Bd3 {[%clk 01:37:57]
[%emt 00:06:24]} 11...Bb7 {[%clk 01:16:02] [%emt 00:16:11]} 12.e4 {[%clk
01:30:54] [%emt 00:07:32]} 12...Na5 {[%clk 01:14:07] [%emt 00:02:25]} 13.Nd2 
{[%clk 01:29:32] [%emt 00:01:51]} 13...e5 {[%clk 01:07:27] [%emt 00:07:11]} 
14.d5 {[%clk 01:16:03] [%emt 00:13:59]} 14...c4 {[%clk 01:03:15] [%emt
00:04:42]} 15.Be2 {[%clk 01:09:46] [%emt 00:06:47]} 15...Qc7 {[%clk 00:31:21]
[%emt 00:32:24]} 16.a4 {[%clk 01:04:49] [%emt 00:05:28]} 16...Rfd8 {[%clk
00:29:46] [%emt 00:02:04]} 17.O-O {[%clk 00:50:46] [%emt 00:14:33]} 17...Nd7 
{[%clk 00:29:25] [%emt 00:00:52]} 18.Ba3 {[%clk 00:51:03] [%emt 00:00:13]} 
18...Nc5 {[%clk 00:29:32] [%emt 00:00:22]} 19.Rb1 {[%clk 00:48:26] [%emt
00:03:07]} 19...Ba6 {[%clk 00:26:33] [%emt 00:03:30]} 20.Qc2 {[%clk 00:43:10]
[%emt 00:05:45]} 20...Rac8 {[%clk 00:26:53] [%emt 00:00:11]} 21.Rfd1 {[%clk
00:42:15] [%emt 00:01:25]} 21...Qd7 {[%clk 00:25:06] [%emt 00:02:17]} 22.Bb4 
{[%clk 00:30:19] [%emt 00:12:25]} 22...g6 {[%clk 00:25:10] [%emt 00:00:25]} 
23.Nf1 {[%clk 00:18:39] [%emt 00:12:11]} 23...h5 {[%clk 00:25:07] [%emt
00:00:33]} 24.Ne3 {[%clk 00:18:41] [%emt 00:00:28]} 24...Qxa4 {[%clk 00:21:17]
[%emt 00:04:20]} 25.Qxa4 {[%clk 00:15:49] [%emt 00:03:22]} 25...Nxa4 {[%clk
00:21:43] [%emt 00:00:04]} 26.g4 {[%clk 00:14:31] [%emt 00:01:48]} 26...h4 
{[%clk 00:21:20] [%emt 00:00:53]} 27.g5 {[%clk 00:11:10] [%emt 00:03:52]} 
27...Nb7 {[%clk 00:20:17] [%emt 00:01:32]} 28.Ng4 {[%clk 00:04:59] [%emt
00:06:41]} 28...Nbc5 {[%clk 00:20:39] [%emt 00:00:09]} 29.f3 {[%clk 00:05:07]
[%emt 00:00:21]} 29...Nd7 {[%clk 00:13:09] [%emt 00:08:00]} 30.Rdc1 {[%clk
00:03:09] [%emt 00:02:28]} 30...Nac5 {[%clk 00:13:21] [%emt 00:00:19]} 31.Bxc5 
{[%clk 00:03:07] [%emt 00:00:32]} 31...Nxc5 {[%clk 00:12:37] [%emt 00:01:14]} 
32.Nxe5 {[%clk 00:03:35] [%emt 00:00:02]} 32...b5 {[%clk 00:11:20] [%emt
00:01:47]} 33.Rc2 {[%clk 00:02:34] [%emt 00:01:30]} 33...Rd6 {[%clk 00:11:45]
[%emt 00:00:05]} 34.Kf2 {[%clk 00:02:29] [%emt 00:00:35]} 34...Rc7 {[%clk
00:09:31] [%emt 00:02:44]} 35.Ke3 {[%clk 00:02:28] [%emt 00:00:31]} 35...Rb6 
{[%clk 00:08:55] [%emt 00:01:06]} 36.Rd2 {[%clk 00:00:47] [%emt 00:02:12]} 
36...Bc8 {[%clk 00:07:19] [%emt 00:02:05]} 37.d6 {[%clk 00:00:44] [%emt
00:00:33]} 37...Rcb7 {[%clk 00:07:45] [%emt 00:00:05]} 38.Rd5 {[%clk 00:00:39]
[%emt 00:00:34]} 38...Nd7 {[%clk 00:08:08] [%emt 00:00:07]} 39.Ng4 {[%clk
00:00:41] [%emt 00:00:28]} 39...a5 {[%clk 00:08:17] [%emt 00:00:22]} 40.f4 
{[%clk 00:00:57] [%emt 00:00:13]} 40...a4 {[%clk 00:07:08] [%emt 00:01:39]} 
41.Rd2 {[%clk 00:41:59] [%emt 00:09:28]} 41...Kg7 {[%clk 00:47:32] [%emt
00:10:07]} 42.e5 {[%clk 00:40:54] [%emt 00:01:34]} 1/2-1/2